[Event "98th Argentine Championship 2023"]
[Site "Buenos Aires"]
[Date "2023.11.01"]
[Round "4.4"]
[White "Perez Ponsa, Federico"]
[Black "Peralta, Fernando"]
[Result "1/2-1/2"]
[ECO "E16"]
[WhiteElo "2527"]
[BlackElo "2580"]
[Annotator "TA"]
[PlyCount "80"]
[EventDate "2023.10.27"]
[EventType "tourn"]
[EventCountry "ARG"]
[SourceTitle "playchess.com"]
[Source "ChessBase"]
[SourceQuality "1"]
[TimeControl "40/5400+30:1800+30"]

{[%evp 19,80,25,27,22,17,8,14,0,8,8,9,8,14,8,24,13,19,12,15,15,20,11,20,11,64,42,108,113,114,126,115,0,0,0,0,0,0,0,0,0,0,0,96,0,0,0,0,0,0,0,0,0,0,0,0,0,0,0,0,0,0,0,0]} 1. d4 {[%emt 0:03:57]} Nf6 {[%emt 0:00:48]} 2. c4 {[%emt 0:00:05]} e6 {[%emt 0:00:12]} 3. Nf3 {[%emt 0:00:06]} b6 {[%emt 0:02:27]} 4. g3 {[%emt 0:00:22]} Bb7 {[%emt 0:00:15]} 5. Bg2 {[%emt 0:00:06]} Bb4+ {[%emt 0:00:24]} 6. Bd2 {[%emt 0:00:47]} Bxd2+ {[%emt 0:00:07]} 7. Qxd2 {[%emt 0:06:58]} O-O {[%emt 0:00:13]} 8. O-O {[%emt 0:05:03]} d6 {[%emt 0:00:21]} 9. Nc3 {[%emt 0:02:15]} Ne4 {[%emt 0:00:29]} 10. Nxe4 {[%emt 0:03:32]} Bxe4 {[%emt 0:00:07]} 11. Qe3 {[%emt 0:01:21] has lost popularity (11.Qf4). E16: Queen's Indian: 4 g3 Bb7 5 Bg2 Bb4+.} Bb7 {[%emt 0:03:16]} 12. Qd3 {[%emt 0:07:23][%cal Of3g5]} f5 {[%emt 0:02:56]} 13. Qe3 {[%emt 0:03:39]} Re8 {[%emt 0:08:30]} 14. c5 {[%emt 0:07:07]} Nd7 {[%emt 0:02:59][%cal Rb6c5] [#]} 15. b4 $146 {[%emt 0:01:54][%cal Bb2b4,Bb4b5][%mdl 32]} ({Predecessor:} 15. cxd6 cxd6 16. Rac1 Nf6 17. Nh4 Bxg2 18. Nxg2 Nd5 19. Qd3 Qd7 20. e4 fxe4 21. Qxe4 {½-½ Vallejo Pons,F (2707)-Safarli,E (2628) Nakhchivan op 2011 (8)}) 15... Bd5 {[%emt 0:04:47]} 16. Rfc1 {[%emt 0:04:46]} a5 {[%emt 0:14:25]} 17. cxd6 {[%emt 0:07:21]} cxd6 {[%emt 0:00:07]} 18. b5 {[%emt 0:00:10]} Nf6 {[%emt 0:01:42]} 19. a4 {[%emt 0:04:10]} Qd7 {[%emt 0:04:21]} 20. Nd2 {[%emt 0:05:07]} Rac8 {[%emt 0:02:21]} 21. Qa3 {[%emt 0:03:30]} Ne4 {[%emt 0:21:30]} (21... h6 $11) 22. Nxe4 {[%emt 0:04:36]} Bxe4 {[%emt 0:00:07]} (22... fxe4 $14 23. Rxc8 Rxc8) 23. Bxe4 $16 {[%emt 0:05:34]} fxe4 {[%emt 0:00:06]} 24. Ra2 {[%emt 0:01:14]} Rc7 {[%emt 0:11:11]} 25. Rxc7 {[%emt 0:04:58]} (25. Rac2 $16 Rec8 26. Rxc7 Rxc7 27. Qe3) 25... Qxc7 {[%emt 0:01:03][%mdl 4096] Endgame KQR-KQR} 26. Qb3 {[%emt 0:00:05] [#] aiming for Rc2.} Qc1+ {[%emt 0:06:06]} 27. Kg2 {[%emt 0:00:05]} d5 $1 {[%emt 0:00:03]} 28. Rc2 {[%emt 0:08:51] Prevents Rc8} Qd1 {[%emt 0:06:10]} 29. Qc3 {[%emt 0:00:17] Qc6 is the strong threat.} h6 {[%emt 0:03:31]} 30. Qc6 {[%emt 0:02:17][%csl LRb6,LRe8]} Kf7 {[%emt 0:00:40]} (30... Re7 $1 $11) 31. Qc7+ {[%emt 0:01:02]} ({Better is} 31. h4 $16) 31... Kg6 {[%emt 0:00:43] The position is equal.} 32. Qd7 {[%emt 0:01:33]} Qxc2 {[%emt 0:01:24]} 33. Qxe8+ $11 {[%emt 0:00:05] KQ-KQ} Kh7 $1 {[%emt 0:01:35]} 34. Qxe6 {[%emt 0:02:11] [#] And now e3 would win.} Qxe2 {[%emt 0:00:04]} 35. Qf5+ {[%emt 0:00:43]} (35. Qxb6 e3 36. Qe6 Qxf2+ 37. Kh3 e2 38. b6 e1=Q 39. Qxe1 Qxe1 40. Kg2 Qe2+ 41. Kg1 Qd1+ 42. Kf2 Qxa4 43. Kg2 Qc2+ 44. Kf3 a4 45. b7 Qb3+ 46. Kg4 a3 47. Kf4 a2 48. b8=Q Qxb8+ 49. Kf3 a1=Q 50. Kg2 Qxd4 51. h4 Qe4+ 52. Kh3 Qf3 53. Kh2 Qbxg3#) 35... Kh8 {[%emt 0:01:18]} 36. Kh3 {[%emt 0:02:03]} g5 {[%emt 0:01:25]} 37. Qg6 {[%emt 0:02:21]} Qf1+ {[%emt 0:00:29]} 38. Kg4 {[%emt 0:00:02]} Qe2+ {[%emt 0:00:09]} (38... Qxf2 $2 39. Qxh6+ Kg8 40. Qxb6 $18) 39. Kh3 {[%emt 0:00:28]} Qf1+ {[%emt 0:00:03]} 40. Kg4 {[%emt 0:00:00]} Qe2+ {[%emt 0:00:00] Weighted Error Value: White=0.13 (very precise) /Black=0.12 (very precise)} (40... Qxf2 $2 41. Qxh6+ Kg8 42. Qg6+ Kh8 43. Qh6+ (43. Qxg5 Qf3+ 44. Kh3 e3 $11) (43. Kxg5 Qe3+ 44. Kh4 Qxd4 $11) 43... Kg8 44. Qg6+ Kh8 45. Qxb6 $18 (45. Qxg5 Qf3+ 46. Kh4 e3 $11)) 1/2-1/2

[Event "98th Argentine Championship 2023"]
[Site "Buenos Aires"]
[Date "2023.11.01"]
[Round "5.1"]
[White "Valerga, Diego"]
[Black "Perez Ponsa, Federico"]
[Result "*"]
[ECO "D27"]
[WhiteElo "2428"]
[BlackElo "2527"]
[Annotator "RC"]
[PlyCount "47"]
[EventDate "2023.10.27"]
[EventType "tourn"]
[EventCountry "ARG"]
[SourceTitle "playchess.com"]
[Source "ChessBase"]
[SourceQuality "1"]
[TimeControl "40/5400+30:1800+30"]

1. d4 {[%emt 0:00:03]} Nf6 {[%emt 0:09:07]} 2. Nf3 {[%emt 0:00:09]} d5 {[%emt 0:00:11]} 3. c4 {[%emt 0:01:18]} e6 {[%emt 0:00:07]} 4. Nc3 {[%emt 0:00:15]} dxc4 {[%emt 0:00:06]} 5. e3 {[%emt 0:02:09]} a6 {[%emt 0:00:32]} 6. Bxc4 {[%emt 0:00:08]} b5 {[%emt 0:00:41]} 7. Bb3 {[%emt 0:01:21]} Bb7 {[%emt 0:00:51]} 8. O-O {[%emt 1:29:07]} c5 {[%emt 0:00:49]} 9. e4 {[%emt 0:01:47]} cxd4 {[%emt 0:02:00]} 10. Nxd4 {[%emt 0:00:12]} Nbd7 {[%emt 0:00:56]} 11. Be3 {[%emt 0:05:58]} Ne5 {[%emt 0:08:14]} 12. h3 {[%emt 0:13:21]} Rc8 {[%emt 0:01:58]} 13. Qe2 {[%emt 0:03:24]} Nc4 {[%emt 1:11:28]} 14. Rad1 {[%emt 0:14:23]} Qa5 {[%emt 0:55:55]} 15. Bxc4 {[%emt 0:27:50]} bxc4 {[%emt 0:06:20]} 16. f3 {[%emt 0:05:27]} Be7 {[%emt 0:02:46]} 17. Qf2 {[%emt 0:04:00]} Qc7 {[%emt 0:05:16]} 18. Nde2 {[%emt 0:04:34]} Nd7 {[%emt 0:02:28]} 19. Rd2 {[%emt 0:01:01]} Ne5 {[%emt 0:02:08]} 20. Bb6 {[%emt 0:12:33]} Qb8 {[%emt 0:03:56]} 21. Ba7 {[%emt 0:00:43]} Qc7 {[%emt 0:00:06]} 22. Bb6 {[%emt 0:00:11]} Qb8 {[%emt 0:00:07]} 23. Ba7 {[%emt 0:07:03]} Qc7 {[%emt 0:00:04]} 24. Bb6 {[%emt 0:00:39]} *

[Event "98th Argentine Championship 2023"]
[Site "Buenos Aires"]
[Date "2023.11.02"]
[Round "5.2"]
[White "Peralta, Fernando"]
[Black "Tokman, Ariel"]
[Result "1-0"]
[ECO "D35"]
[WhiteElo "2580"]
[BlackElo "2306"]
[Annotator "TA"]
[PlyCount "87"]
[EventDate "2023.10.27"]
[EventType "tourn"]
[EventCountry "ARG"]
[SourceTitle "playchess.com"]
[Source "ChessBase"]
[SourceQuality "1"]
[TimeControl "40/5400+30:1800+30"]

{[%evp 12,87,26,32,38,37,43,36,57,0,67,51,48,54,63,53,51,58,44,29,37,27,81,77,89,92,134,84,76,49,62,58,67,49,61,66,79,31,54,39,69,69,67,77,61,70,70,66,80,81,74,74,145,74,76,56,66,21,9,0,0,0,0,0,8,0,0,0,23,33,130,108,218,214,197,191,708,660]} 1. d4 {[%emt 0:00:05]} d5 {[%emt 0:00:21]} 2. c4 {[%emt 0:00:06]} e6 {[%emt 0:00:07]} 3. Nc3 {[%emt 0:00:41]} Nf6 {[%emt 0:00:08]} 4. cxd5 {[%emt 0:00:46]} exd5 {[%emt 0:00:08]} 5. Bg5 {[%emt 0:00:07][%cal Bc1g5,Bg5h4,Bh4g3][%mdl 32]} Bb4 {[%emt 0:00:12]} 6. e3 {[%emt 0:01:27]} h6 {[%emt 0:01:07]} 7. Bh4 {[%emt 0:00:08]} g5 {[%emt 0:01:45] D35: Queen's Gambit Declined: Exchange Variation.} 8. Bg3 {[%emt 0:00:07]} Ne4 {[%emt 0:01:10]} 9. Nge2 {[%emt 0:00:12]} h5 {[%emt 0:11:51] And now ...h4 would win. White is slightly better.} 10. h3 {[%emt 0:00:07] [#]} (10. h4 $14) 10... Qf6 $146 {[%emt 0:18:35]} (10... Bxc3+ $11 11. Nxc3 Nxg3 12. fxg3 Qd6) ({Predecessor:} 10... Nxg3 11. Nxg3 h4 12. Nh5 Qe7 13. Rc1 c6 14. a3 Ba5 15. Be2 f5 16. O-O O-O {½-½ Mamedyarov,S (2747)-Pichot,A (2642) Casablanca Mohammed op 4th 2023 (6)}) 11. Qb3 {[%emt 0:47:45]} Nxg3 $1 {[%emt 0:05:22]} 12. Nxg3 {[%emt 0:01:09]} Bxc3+ {[%emt 0:05:41]} 13. bxc3 {[%emt 0:03:47][%cal Bb2c3,Bc3c4,Bc4c5][%mdl 32]} h4 {[%emt 0:01:33]} 14. Ne2 {[%emt 0:00:10][%cal Bg3e2,Be2g1,Bg1f3,Bf3h2,Bh2g4][%mdl 32]} Qd6 {[%emt 0:21:33]} 15. Ng1 {[%emt 0:04:22]} Nc6 {[%emt 0:02:34]} 16. Nf3 {[%emt 0:00:18]} Rg8 {[%emt 0:00:33]} (16... f6 $11) 17. c4 $16 {[%emt 0:06:11]} Be6 {[%emt 0:10:09]} 18. c5 {[%emt 0:01:53]} (18. Qxb7 Rb8 19. c5 Rxb7 $11) 18... Qd7 {[%emt 0:03:06]} 19. Bb5 {[%emt 0:02:04]} (19. Qxb7 $142 Rb8 20. Qa6) 19... f6 {[%emt 0:00:36]} 20. Nh2 {[%emt 0:05:31]} Kf7 {[%emt 0:02:11] [#]} 21. Ng4 $1 {[%emt 0:00:58] Threatens to win with Nh6+.} Kg7 {[%emt 0:00:43] Prevents Nh6} 22. Qd1 {[%emt 0:09:24]} Qe7 {[%emt 0:02:10]} 23. Rb1 {[%emt 0:02:31]} Rab8 {[%emt 0:01:55]} 24. Rb3 {[%emt 0:05:37]} (24. O-O $16) 24... a6 {[%emt 0:02:59]} 25. Be2 {[%emt 0:00:09]} b6 {[%emt 0:02:46]} 26. cxb6 {[%emt 0:00:47]} (26. Bxa6 bxc5 27. dxc5 Bxg4 28. hxg4 Rxb3 29. axb3 d4 $17) 26... Rxb6 {[%emt 0:00:07]} 27. O-O {[%emt 0:01:40]} Na5 {[%emt 0:00:30]} 28. Rxb6 {[%emt 0:01:22]} cxb6 {[%emt 0:00:01]} 29. Bxa6 {[%emt 0:00:16]} Ra8 {[%emt 0:00:26]} 30. Bd3 {[%emt 0:04:00]} Nc4 {[%emt 0:00:06]} 31. Bb1 {[%emt 0:00:31]} Nd6 {[%emt 0:02:41] [#]} (31... Na3 $142) 32. Re1 {[%emt 0:01:13]} (32. Qc2 $142 $1 {[%cal Rc2g6] Black must now prevent Qg6+.} Kf8 33. Qg6 Bxg4 34. hxg4) 32... Rc8 {[%emt 0:00:54]} 33. Qb3 {[%emt 0:00:57]} (33. Qd3 $5 {[%cal Rd3g6]} Ne4 34. Qb3 $14) 33... Qc7 {[%emt 0:00:43]} 34. e4 {[%emt 0:00:34]} Bxg4 {[%emt 0:01:27]} 35. hxg4 {[%emt 0:00:03]} dxe4 {[%emt 0:00:14]} 36. Bxe4 {[%emt 0:00:44]} Re8 {[%emt 0:01:11]} (36... Nxe4 {simplifies} 37. Rxe4 Qc1+ 38. Kh2 Qc7+) 37. f3 {[%emt 0:00:39]} Nf7 {[%emt 0:00:33] Black is weak on the light squares} 38. Qb5 {[%emt 0:00:36]} Qg3 {[%emt 0:00:24]} 39. Re2 {[%emt 0:00:29]} Rc8 {[%emt 0:00:27] ( -> ...Rc1+)} (39... Nd6 $5 {[%cal Rd6b5]} 40. Qd7+ (40. Qxb6 Nxe4 41. Qb7+ {[%mdl 64] Pin} Kh6 $11) 40... Kf8 $11) 40. Bc2 {[%emt 0:00:00]} (40. Qxb6 $2 {leads to mate.} Rc1+) 40... h3 {[%emt 0:00:00]} (40... Qd6 $14 41. Qd3 Kf8) 41. Qf5 {[%emt 0:06:00] The board is on fire.} ({Much worse is} 41. Qxb6 $6 h2+ 42. Kh1 Rxc2 43. Rxc2 Qe1+ 44. Kxh2 Qh4+ 45. Kg1 Qe1+ 46. Kh2 Qh4+ 47. Kg1 Qe1+ 48. Kh2 $11) 41... Rc4 {[%emt 0:27:12]} (41... Rc7 $16 {is a better defense.}) 42. Qg6+ $18 {[%emt 0:05:56][%mdl 64] Deflection} Kf8 {[%emt 0:00:06]} 43. Qxf6 {[%emt 0:00:07]} Rxc2 $2 {[%emt 0:01:28]} (43... Qc7) 44. Qe7+ {[%emt 0:00:56] Weighted Error Value: White=0.14 (very precise) /Black=0.25 (precise)} ({Worse is} 44. Rxc2 h2+ 45. Kh1 Qe1+ 46. Kxh2 Qh4+ 47. Kg1 Qe1+ 48. Kh2 Qh4+ 49. Kg1 Qe1+ 50. Kh2 $11) 1-0

[Event "98th Argentine Championship 2023"]
[Site "Buenos Aires"]
[Date "2023.11.02"]
[Round "5.4"]
[White "Krysa, Leandro"]
[Black "Gomez, Carlos David"]
[Result "1/2-1/2"]
[ECO "A13"]
[WhiteElo "2546"]
[BlackElo "2331"]
[Annotator "TA"]
[PlyCount "104"]
[EventDate "2023.10.27"]
[EventType "tourn"]
[EventCountry "ARG"]
[SourceTitle "playchess.com"]
[Source "ChessBase"]
[SourceQuality "1"]
[TimeControl "40/5400+30:1800+30"]

{[%evp 12,104,41,28,35,33,41,25,28,14,20,11,34,15,16,11,14,11,9,10,10,9,11,8,8,22,38,61,52,35,30,22,22,29,58,46,41,45,145,137,141,122,124,51,50,59,45,45,55,69,75,56,54,36,51,41,73,70,107,28,35,19,18,18,26,0,0,0,16,0,0,0,96,0,0,0,0,0,0,0,164,54,70,0,0,0,0,0,0,0,0,0,0,0,0]} 1. Nf3 {[%emt 0:00:10]} d5 {[%emt 0:00:14]} 2. g3 {[%emt 0:00:20]} Nf6 {[%emt 0:02:05]} 3. Bg2 {[%emt 0:00:25]} e6 {[%emt 0:01:26]} 4. O-O {[%emt 0:01:13]} Be7 {[%emt 0:00:47]} 5. c4 {[%emt 0:01:46]} dxc4 {[%emt 0:00:34]} 6. Qa4+ {[%emt 0:04:26]} Nbd7 {[%emt 0:04:17]} 7. Qxc4 {[%emt 0:02:04]} c5 {[%emt 0:00:43] is the legacy move (7...a6). A13: English Opening: 1...e6.} 8. Qc2 {[%emt 0:08:20] [#]} Nd5 $146 {[%emt 0:22:23]} ({Predecessor:} 8... O-O 9. Nc3 Rb8 10. d4 cxd4 11. Nxd4 a6 12. Rd1 Qa5 13. Bf4 e5 14. Nf5 Bc5 15. Bd2 {1-0 Tazbir,M (2509)-Socko,M (2458) Wroclaw Radzikowska Blitz op 2022 (11)}) 9. a3 {[%emt 0:03:36]} b5 {[%emt 0:10:46] White has an edge.} 10. e4 {[%emt 0:19:40]} N5b6 {[%emt 0:00:27]} 11. d4 {[%emt 0:01:36]} Bb7 {[%emt 0:01:36]} 12. Rd1 {[%emt 0:03:34][%cal Od4d5]} Qc8 {[%emt 0:04:44] [#]} 13. d5 $1 {[%emt 0:13:31]} exd5 {[%emt 0:16:51]} 14. exd5 {[%emt 0:00:27]} Nxd5 {[%emt 0:00:13]} (14... O-O {is more complex.} 15. Nc3 b4 16. d6 bxc3 17. dxe7 Re8) 15. Nh4 {[%emt 0:03:09]} Bxh4 {[%emt 0:07:09]} 16. Bxd5 {[%emt 0:02:51]} Be7 {[%emt 0:03:12]} 17. Qe2 {[%emt 0:03:30]} Bxd5 {[%emt 0:07:09]} 18. Rxd5 {[%emt 0:00:09][%cal Ob1c3] Strongly threatening Nc3!} Kf8 {[%emt 0:00:08]} 19. Nc3 {[%emt 0:07:21][%cal Oc1f4][%mdl 1024] Bf4! is the strong threat. White has compensation.} Nf6 {[%emt 0:02:57]} 20. Rd1 {[%emt 0:01:37]} a6 {[%emt 0:01:55]} 21. Qf3 {[%emt 0:06:47]} Rb8 {[%emt 0:00:22]} 22. Bg5 {[%emt 0:09:50]} h6 {[%emt 0:02:34]} 23. Bxf6 {[%emt 0:00:25]} Bxf6 {[%emt 0:00:08]} 24. Rac1 {[%emt 0:01:50]} (24. Rd6 {simplifies} Be7 25. Rg6 Qb7 26. Qxb7 Rxb7 27. Rxa6 g6 28. Re1) 24... Bd4 {[%emt 0:07:15]} (24... h5 $14) 25. Ne4 $16 {[%emt 0:00:48]} Qb7 {[%emt 0:00:32]} 26. Qf4 {[%emt 0:00:56] White is more active.} g5 {[%emt 0:02:23]} (26... Bxb2 $2 27. Nxc5 Bxc1 28. Qd6+ Kg8 29. Nxb7 Rxb7 30. Qxa6 $18) 27. Qd6+ {[%emt 0:00:39]} (27. Qf5 $1 $16 Qe7 28. Nxc5 Bxc5 29. Rd7 (29. Qxc5 Qxc5 30. Rxc5 Rb6 $14) (29. Rxc5 Rb6 $16) 29... Bxf2+ 30. Kxf2) 27... Qe7 $1 $14 {[%emt 0:00:38]} (27... Kg8 28. Rxd4 (28. Nxc5 Bxc5 29. Rxc5 Re8 $18) 28... cxd4 29. Nf6+ Kg7 30. Nh5+ Kg8 31. Qe5 $18) 28. Qxb8+ {[%emt 0:02:42]} Kg7 {[%emt 0:00:01] [#]} 29. Nd6 $1 {[%emt 0:00:46]} Qf6 {[%emt 0:00:33] Dodges Nf5+} (29... Rxb8 $2 30. Nf5+ Kf8 31. Nxe7 Kxe7 32. b4 $18) (29... Bxf2+ $2 30. Kf1 (30. Kg2 $2 Qe2 $19) 30... Qf6 31. Ne4 $18 (31. Ne8+ Rxe8 32. Qxe8 Bd4+ 33. Kg2 Qf2+ 34. Kh3 Qf5+ 35. Kg2 Qf2+ 36. Kh3 Qf5+ 37. Kg2 Qf2+ $11)) 30. Qb7 {[%emt 0:00:28]} ({But not} 30. Ne8+ $2 Rxe8 31. Rxd4 Rxb8 $19) 30... Qxd6 {[%emt 0:00:38]} 31. Qf3 {[%emt 0:00:31]} (31. b4 {is interesting.} c4 32. Qe4 Rd8 33. Kg2) 31... Rd8 {[%emt 0:00:40]} 32. b3 {[%emt 0:00:24]} a5 {[%emt 0:00:18]} 33. Re1 {[%emt 0:00:25]} Qf6 {[%emt 0:00:14]} 34. Kg2 {[%emt 0:00:41]} (34. Qxf6+ {simplifies} Kxf6 35. Kg2 Rd6 36. Rb1) 34... b4 {[%emt 0:00:55]} 35. axb4 {[%emt 0:00:30]} (35. Qxf6+ $16 Kxf6 36. a4) 35... axb4 $11 {[%emt 0:00:07]} 36. Qxf6+ {[%emt 0:00:29]} (36. h4 {with more complications.} gxh4 37. gxh4 Rg8 38. Qxf6+ Kxf6+ 39. Kf3) 36... Kxf6 $16 {[%emt 0:00:06][%mdl 4096] Endgame KRR-KRB} 37. Kf3 {[%emt 0:00:27][%cal Bg2f3,Bf3e4,Be4d3,Bd3e2][%mdl 32]} Ra8 {[%emt 0:00:08]} 38. Rc2 {[%emt 0:00:34]} Ra3 {[%emt 0:00:17]} 39. Rb1 {[%emt 0:00:20]} h5 {[%emt 0:01:41]} 40. Ke4 {[%emt 0:00:00]} Ke6 {[%emt 0:00:00]} 41. f3 {[%emt 0:15:26]} f5+ {[%emt 0:02:35]} 42. Kd3 {[%emt 0:00:27]} Kd5 {[%emt 0:00:07]} 43. Ke2 {[%emt 0:02:24]} Ra7 {[%emt 0:11:52]} 44. Kd3 {[%emt 0:00:33]} Be5 {[%emt 0:01:00]} 45. Re1 {[%emt 0:03:29][%cal Oc2c5]} Bd6 {[%emt 0:03:54] [#]} (45... Bf6 $11 {and Black is okay.}) 46. Rd2 {[%emt 0:02:16]} (46. Re8 $1 $18) 46... Be5 $1 $14 {[%emt 0:02:51] [#] And now ...Bc3 would win.} 47. Rxe5+ {[%emt 0:01:04]} Kxe5 {[%emt 0:00:07] KR-KR. The position is equal.} 48. Kc4 {[%emt 0:00:02]} Ra5 {[%emt 0:01:30]} 49. Re2+ {[%emt 0:06:21]} Kd6 {[%emt 0:03:04]} 50. Rd2+ {[%emt 0:00:07]} Ke5 {[%emt 0:00:35]} 51. Re2+ {[%emt 0:00:50]} Kd6 {[%emt 0:00:06]} 52. Rd2+ {[%emt 0:00:56]} Ke5 {[%emt 0:00:05] An exciting game.   Weighted Error Value: White=0.13 (very precise) /Black=0.12 (very precise)} 1/2-1/2

[Event "98th Argentine Championship 2023"]
[Site "Buenos Aires"]
[Date "2023.11.04"]
[Round "7.1"]
[White "Peralta, Fernando"]
[Black "Villca, Julian"]
[Result "1-0"]
[ECO "D35"]
[WhiteElo "2580"]
[BlackElo "2383"]
[Annotator "TA"]
[PlyCount "129"]
[EventDate "2023.10.27"]
[EventType "tourn"]
[EventCountry "ARG"]
[SourceTitle "playchess.com"]
[Source "ChessBase"]
[SourceQuality "1"]
[TimeControl "40/5400+30:1800+30"]

{[%evp 17,129,4,13,27,36,18,19,12,0,7,43,45,47,34,35,45,45,46,81,83,85,85,85,85,84,93,83,85,87,73,108,113,116,101,121,106,135,127,120,100,108,114,121,111,110,114,132,116,116,126,127,127,140,127,162,155,229,224,271,159,266,279,261,275,353,318,620,610,572,385,404,395,750,706,676,327,864,826,901,841,771,683,1144,343,341,327,930,286,289,0,872,404,391,296,284,284,513,520,512,212,200,196,560,520,520,472,309,381,257,285,1569,1603,1030,781]} 1. d4 {[%emt 0:00:02]} d5 {[%emt 0:06:30]} 2. c4 {[%emt 0:00:09]} e6 {[%emt 0:00:05]} 3. Nc3 {[%emt 0:00:17]} Nf6 {[%emt 0:00:13]} 4. cxd5 {[%emt 0:00:11]} exd5 {[%emt 0:00:10]} 5. Bg5 {[%emt 0:00:07]} Be7 {[%emt 0:01:38]} 6. e3 {[%emt 0:00:10]} O-O {[%emt 0:01:02]} 7. Bd3 {[%emt 0:00:08]} c6 {[%emt 0:01:18]} 8. Nge2 {[%emt 0:00:39]} Nbd7 {[%emt 0:03:26] 8...Re8 injects fresh life into this line.} 9. O-O {[%emt 0:00:22]} Ne4 {[%emt 0:11:43][%mdl 64] [#] Discovered Attack} 10. Bf4 {[%emt 0:12:43] D35: Queen's Gambit Declined: Exchange Variation.} Ndf6 {[%emt 0:00:48] [#]} 11. Nxe4 $146 {[%emt 0:09:43]} ({Predecessor:} 11. Qc2 Nd6 12. h3 g6 13. Ng3 Nfe8 14. Rad1 Ng7 15. Bh6 Bg5 16. Bxg5 Qxg5 17. e4 dxe4 18. Ncxe4 Nxe4 19. Nxe4 {1-0 Medancic,R (2135)-Stubljar,A (2025) Hum na Sutli op 14th 2022 (6)}) 11... dxe4 {[%emt 0:03:35]} 12. Bc4 {[%emt 0:01:30] The position is equal.} Nd5 {[%emt 0:01:59]} 13. Bxd5 {[%emt 0:24:33]} cxd5 {[%emt 0:17:42]} 14. Qb3 {[%emt 0:14:13]} b6 {[%emt 0:00:56]} 15. Rfc1 {[%emt 0:01:14]} Ba6 {[%emt 0:01:26]} 16. Nc3 {[%emt 0:00:10]} Bc4 {[%emt 0:00:34]} 17. Qa4 {[%emt 0:00:10]} b5 {[%emt 0:32:33]} 18. Nxb5 {[%emt 0:02:40] White is more active.} Qd7 {[%emt 0:01:04]} 19. Nc3 {[%emt 0:00:59][%cal Bb5c3,Bc3a4,Ba4c5][%mdl 32]} Qxa4 {[%emt 0:00:51]} 20. Nxa4 {[%emt 0:00:05]} Rfc8 {[%emt 0:00:43] [#]} 21. Nc5 $1 {[%emt 0:04:48]} g5 {[%emt 0:01:23]} 22. Bg3 {[%emt 0:01:00]} a5 {[%emt 0:02:20]} 23. b3 {[%emt 0:05:55]} Bxc5 {[%emt 0:00:35]} 24. dxc5 {[%emt 0:00:16]} (24. bxc4 $6 Ba3 25. c5 Bxc1 26. Rxc1 f6 $11) 24... Bb5 {[%emt 0:00:06]} 25. h4 {[%emt 0:08:58]} h6 {[%emt 0:00:21]} 26. Be5 {[%emt 0:03:30]} Rc6 {[%emt 0:00:06]} 27. hxg5 {[%emt 0:02:46]} hxg5 {[%emt 0:00:01]} 28. Bd6 {[%emt 0:00:24]} Kg7 {[%emt 0:01:15]} 29. Rd1 {[%emt 0:00:35]} Bd3 {[%emt 0:00:06]} 30. f3 {[%emt 0:02:50]} f6 {[%emt 0:01:34]} 31. Kf2 {[%emt 0:00:26]} Rh8 {[%emt 0:00:20]} 32. Rh1 {[%emt 0:01:02]} Rxh1 {[%emt 0:00:14]} 33. Rxh1 $16 {[%emt 0:00:04][%mdl 4096] Endgame KRB-KRB} Rc8 {[%emt 0:00:05]} 34. Rc1 {[%emt 0:00:53]} Bb5 {[%emt 0:00:49]} 35. f4 {[%emt 0:02:53]} Kg6 {[%emt 0:00:30]} 36. fxg5 {[%emt 0:00:50]} fxg5 {[%emt 0:00:12]} (36... Kxg5 $16 {keeps fighting.} 37. a4 Bc6) 37. Ke1 $18 {[%emt 0:00:41]} d4 {[%emt 0:02:16]} 38. a4 {[%emt 0:00:47]} (38. exd4 $18 {d5 would be deadly.} e3 39. Rc3) 38... Ba6 {[%emt 0:02:02]} (38... Bc6 $16 39. exd4 e3) 39. exd4 {[%emt 0:00:23]} e3 {[%emt 0:00:01]} 40. Rc3 {[%emt 0:00:00]} e2 {[%emt 0:00:00]} 41. Kd2 {[%emt 0:11:51]} Kf5 $2 {[%emt 0:06:03]} (41... Rh8 42. Bg3 Rd8) 42. Re3 {[%emt 0:00:31]} Rh8 {[%emt 0:02:36]} 43. Bg3 {[%emt 0:10:57]} Rd8 {[%emt 0:04:18]} 44. Kc3 {[%emt 0:01:35]} Rh8 $2 {[%emt 0:00:39]} (44... Rc8 45. Re5+ Kf6) 45. c6 {[%emt 0:01:54]} Rh1 {[%emt 0:00:16]} 46. c7 {[%emt 0:01:28]} (46. d5 $142) 46... Kg4 $2 {[%emt 0:00:26]} (46... Rc1+ 47. Kb2 e1=Q 48. Bxe1 Rxc7 49. Bxa5 Rf7) 47. d5 {[%emt 0:04:53][%cal Bd4d5,Bd5d6][%mdl 32]} Rd1 {[%emt 0:00:05]} 48. d6 {[%emt 0:00:41]} Rd5 {[%emt 0:00:02]} 49. Kc2 {[%emt 0:01:18]} Rd4 {[%emt 0:00:37]} 50. Be1 $2 {[%emt 0:00:41]} (50. Bh2 Kh4 51. Rxe2) 50... Rxd6 {[%emt 0:01:13]} 51. Bxa5 {[%emt 0:00:20] Black must now prevent b4.} Rd5 $2 {[%emt 0:00:57]} (51... Rc6+ 52. Kb2 Kf4) 52. Bb4 $2 {[%emt 0:00:31]} (52. b4 Rd4 53. b5) 52... Rd7 {[%emt 0:00:12]} 53. Ba5 {[%emt 0:00:37]} (53. Re4+ Kf5 54. Rc4) 53... Rd5 $1 {[%emt 0:00:01]} 54. Be1 {[%emt 0:00:35]} (54. b4 $142 Rf5 55. Rxe2) 54... Rd7 {[%emt 0:00:27]} 55. Re4+ {[%emt 0:00:19]} Kf5 {[%emt 0:00:12]} 56. Rc4 {[%emt 0:01:13][%mdl 64] Decoy, Promotion} Rd1 $2 {[%emt 0:00:37]} (56... Bc8 {might work better.} 57. Rc5+ Kf6 58. Bc3+ Ke6 59. Rxg5 Re7) 57. g4+ {[%emt 0:00:00]} Ke6 {[%emt 0:00:22]} 58. c8=Q+ {[%emt 0:00:28]} (58. c8=B+ Bxc8 59. Re4+ Kd5 60. Rxe2 Rd4 $16) (58. Rc6+ $142 Kd7 59. Rxa6 Rxe1 60. Kd2 {[%mdl 64] Deflection}) 58... Bxc8 {[%emt 0:00:19]} 59. Rxc8 {[%emt 0:00:27] KRB-KR} ({Resist} 59. Re4+ $6 Kd5 60. Rxe2 Rd4 $16) 59... Kd7 {[%emt 0:00:16] Against Re8} (59... Rxe1 60. Re8+ Kd5) 60. Rc5 {[%emt 0:00:33]} Rxe1 {[%emt 0:00:08]} 61. Kd2 {[%emt 0:00:30]} (61. Rxg5 Rc1+ 62. Kxc1 e1=Q+ 63. Kc2 Qe2+ 64. Kb1 Qd1+ 65. Kb2 Qd2+ 66. Kb1 Qxg5 67. a5 Qxg4 68. Kb2 Kc6 69. a6 Qd4+ 70. Kc2 Kd5 71. Kb1 Qf2 72. a7 Qxa7 73. Kc2 Qd4 74. Kb1 Qd2 75. b4 Kc4 76. b5 Kc3 77. b6 Qb2#) 61... Rg1 {[%emt 0:01:00]} 62. Kxe2 {[%emt 0:00:02]} (62. Rxg5 {is a self mate.} e1=Q+ 63. Kd3 Rg3+ 64. Kc4 Qc1+ 65. Kb4 Qxg5 66. Ka3 Qc5+ 67. Kb2 Rg2+ 68. Kb1 Qg1#) 62... Rxg4 {[%emt 0:00:05]} 63. Kd3 {[%emt 0:00:18]} Rg1 $2 {[%emt 0:00:46]} (63... Kd6 64. Rf5 Rg1) 64. Kc4 {[%emt 0:00:57]} Kd6 {[%emt 0:00:07]} 65. Kb5 {[%emt 0:01:15] Weighted Error Value: White=0.31/Black=0.30} 1-0